[Event "FIDE World Rapid Chess Championship 2021"]
[White "Harsha, Bharathakoti"]
[Black "Paravyan, David"]
[WhiteFideId "5078776"]
[BlackFideId "4194985"]
[WhiteElo "2484"]
[BlackElo "2671"]
[Result "1/2-1/2"]
[Round "06"]
[TimeControl "900+10"]
[Date "2021.12.27"]
[WhiteClock "0:02:49"]
[BlackClock "0:00:05"]

1. e4 {[%clk 0:15:00]}  e5 {[%clk 0:15:13]} 2. Nf3 {[%clk 0:15:14]}  Nc6 {[%clk 0:15:13]} 3. Bc4 {[%clk 0:15:14]}  Nf6 {[%clk 0:15:13]} 4. d3 {[%clk 0:15:14]}  d5 {[%clk 0:15:13]} 5. exd5 {[%clk 0:15:14]}  Nxd5 {[%clk 0:15:13]} 6. O-O {[%clk 0:15:14]}  Be7 {[%clk 0:15:13]} 7. Re1 {[%clk 0:14:46]}  f6 {[%clk 0:15:55]} 8. d4 {[%clk 0:14:36]}  Nb6 {[%clk 0:14:40]} 9. Bb5 {[%clk 0:14:36]}  O-O {[%clk 0:14:40]} 10. dxe5 {[%clk 0:12:27]}  Qxd1 {[%clk 0:16:04]} 11. Rxd1 {[%clk 0:12:27]}  Nxe5 {[%clk 0:16:04]} 12. Nxe5 {[%clk 0:12:27]}  fxe5 {[%clk 0:16:04]} 13. Be3 {[%clk 0:12:27]}  Bf5 {[%clk 0:15:58]} 14. Nd2 {[%clk 0:12:14]}  c6 {[%clk 0:15:16]} 15. Bd3 {[%clk 0:11:45]}  Bxd3 {[%clk 0:15:16]} 16. cxd3 {[%clk 0:11:45]}  Nd5 {[%clk 0:15:16]} 17. Nc4 {[%clk 0:11:45]}  Nxe3 {[%clk 0:14:26]} 18. fxe3 {[%clk 0:12:07]}  Rad8 {[%clk 0:09:03]} 19. Nxe5 {[%clk 0:11:48]}  Bg5 {[%clk 0:07:44]} 20. Re1 {[%clk 0:09:58]}  Bf6 {[%clk 0:07:42]} 21. Ng4 {[%clk 0:07:47]}  Rxd3 {[%clk 0:04:20]} 22. Nxf6+ {[%clk 0:05:31]}  Rxf6 {[%clk 0:03:20]} 23. Rad1 {[%clk 0:05:39]}  Rfd6 {[%clk 0:03:20]} 24. Rxd3 {[%clk 0:05:39]}  Rxd3 {[%clk 0:03:20]} 25. Re2 {[%clk 0:05:39]}  Kf7 {[%clk 0:03:20]} 26. Kf2 {[%clk 0:05:39]}  Ke6 {[%clk 0:02:49]} 27. Rc2 {[%clk 0:05:40]}  Rd1 {[%clk 0:02:49]} 28. Ke2 {[%clk 0:05:40]}  Ra1 {[%clk 0:02:49]} 29. b3 {[%clk 0:05:43]}  a5 {[%clk 0:02:17]} 30. Kf3 {[%clk 0:04:49]}  Rb1 {[%clk 0:01:53]} 31. h4 {[%clk 0:04:49]}  Rf1+ {[%clk 0:00:39]} 32. Ke4 {[%clk 0:04:11]}  Rf5 {[%clk 0:00:24]} 33. g4 {[%clk 0:04:11]}  Rb5 {[%clk 0:00:24]} 34. Rc4 {[%clk 0:03:59]}  h5 {[%clk 0:00:11]} 35. gxh5 {[%clk 0:03:59]}  Rxh5 {[%clk 0:00:11]} 36. Kd3 {[%clk 0:03:59]}  g5 {[%clk 0:00:11]} 37. hxg5 {[%clk 0:03:21]}  Rxg5 {[%clk 0:00:00]} 38. Rh4 {[%clk 0:03:21]}  Rd5+ {[%clk 0:00:00]} 39. Kc3 {[%clk 0:03:21]}  Rc5+ {[%clk 0:00:00]} 40. Kd3 {[%clk 0:03:21]}  Rd5+ {[%clk 0:00:05]} 41. Kc3 {[%clk 0:02:49]}  Rc5+ {[%clk 0:00:05]} 42. Kd3 {[%clk 0:02:49]}  Ke5 {[%clk 0:00:05]} 1/2-1/2


[Site "http://www.Chess.com"]

[Event "FIDE World Rapid Chess Championship 2021"]
[White "Movsesian, Sergei"]
[Black "Ivic, Velimir"]
[WhiteFideId "310204"]
[BlackFideId "950122"]
[WhiteElo "2667"]
[BlackElo "2357"]
[Result "1-0"]
[Round "06"]
[TimeControl "900+10"]
[Date "2021.12.27"]
[WhiteClock "0:00:29"]
[BlackClock "0:00:25"]

1. e4 {[%clk 0:15:00]}  c5 {[%clk 0:15:00]} 2. Nc3 {[%clk 0:15:00]}  Nc6 {[%clk 0:15:00]} 3. g3 {[%clk 0:15:00]}  g6 {[%clk 0:15:32]} 4. Bg2 {[%clk 0:15:34]}  Bg7 {[%clk 0:15:32]} 5. d3 {[%clk 0:15:34]}  d6 {[%clk 0:15:32]} 6. Be3 {[%clk 0:15:34]}  Rb8 {[%clk 0:15:32]} 7. Qd2 {[%clk 0:15:34]}  b5 {[%clk 0:15:18]} 8. Nge2 {[%clk 0:15:41]}  Nd4 {[%clk 0:14:52]} 9. O-O {[%clk 0:15:08]}  h5 {[%clk 0:14:10]} 10. Bg5 {[%clk 0:14:43]}  Ne6 {[%clk 0:13:17]} 11. Be3 {[%clk 0:12:51]}  b4 {[%clk 0:11:53]} 12. Nd1 {[%clk 0:12:07]}  h4 {[%clk 0:10:14]} 13. a3 {[%clk 0:12:07]}  b3 {[%clk 0:09:44]} 14. c3 {[%clk 0:11:14]}  Nf6 {[%clk 0:09:44]} 15. h3 {[%clk 0:10:55]}  hxg3 {[%clk 0:09:33]} 16. fxg3 {[%clk 0:10:55]}  Ba6 {[%clk 0:09:22]} 17. Nf2 {[%clk 0:09:49]}  Nd7 {[%clk 0:07:40]} 18. Ng4 {[%clk 0:08:03]}  Ne5 {[%clk 0:06:12]} 19. Nxe5 {[%clk 0:08:03]}  dxe5 {[%clk 0:06:12]} 20. Rad1 {[%clk 0:08:03]}  Qc7 {[%clk 0:06:12]} 21. c4 {[%clk 0:07:19]}  Nd4 {[%clk 0:05:31]} 22. Nc3 {[%clk 0:06:26]}  e6 {[%clk 0:05:31]} 23. g4 {[%clk 0:06:33]}  f6 {[%clk 0:04:16]} 24. Qf2 {[%clk 0:03:39]}  Kd7 {[%clk 0:04:17]} 25. a4 {[%clk 0:03:39]}  Rbf8 {[%clk 0:03:41]} 26. Nb5 {[%clk 0:03:11]}  Qb8 {[%clk 0:03:41]} 27. Qd2 {[%clk 0:02:55]}  Bb7 {[%clk 0:03:25]} 28. Qa5 {[%clk 0:01:31]}  a6 {[%clk 0:03:09]} 29. Nxd4 {[%clk 0:01:31]}  exd4 {[%clk 0:02:07]} 30. Bf4 {[%clk 0:01:39]}  e5 {[%clk 0:02:07]} 31. Bd2 {[%clk 0:01:39]}  Qd6 {[%clk 0:02:07]} 32. Rf2 {[%clk 0:01:39]}  f5 {[%clk 0:00:47]} 33. Rdf1 {[%clk 0:01:08]}  f4 {[%clk 0:00:47]} 34. Rf3 {[%clk 0:00:51]}  Bf6 {[%clk 0:00:32]} 35. Be1 {[%clk 0:00:51]}  Qc6 {[%clk 0:00:32]} 36. Bf2 {[%clk 0:00:51]}  Bd8 {[%clk 0:00:32]} 37. Qd2 {[%clk 0:00:51]}  Qxa4 {[%clk 0:00:32]} 38. Rc1 {[%clk 0:00:51]}  a5 {[%clk 0:00:27]} 39. Be1 {[%clk 0:00:33]}  Qb4 {[%clk 0:00:27]} 40. Qd1 {[%clk 0:00:33]}  Qb6 {[%clk 0:00:27]} 41. Ra1 {[%clk 0:00:33]}  Bc6 {[%clk 0:00:27]} 42. Bxa5 {[%clk 0:00:33]}  Qb7 {[%clk 0:00:27]} 43. Bd2 {[%clk 0:00:33]}  Bc7 {[%clk 0:00:34]} 44. Rf1 {[%clk 0:00:05]}  Ra8 {[%clk 0:00:34]} 45. g5 {[%clk 0:00:05]}  Rxa1 {[%clk 0:00:34]} 46. Qg4+ {[%clk 0:00:05]}  Ke7 {[%clk 0:00:34]} 47. Rxa1 {[%clk 0:00:05]}  Bd7 {[%clk 0:00:34]} 48. Qf3 {[%clk 0:00:05]}  Rh5 {[%clk 0:00:29]} 49. Be1 {[%clk 0:00:46]}  Bb6 {[%clk 0:00:29]} 50. h4 {[%clk 0:00:46]}  Qc8 {[%clk 0:00:29]} 51. Qd1 {[%clk 0:00:46]}  Rh8 {[%clk 0:00:29]} 52. Qxb3 {[%clk 0:00:46]}  Qc7 {[%clk 0:00:16]} 53. Bf3 {[%clk 0:00:54]}  Rb8 {[%clk 0:00:16]} 54. Qd1 {[%clk 0:00:54]}  Qd6 {[%clk 0:00:16]} 55. b3 {[%clk 0:00:54]}  Kf8 {[%clk 0:00:16]} 56. Ra6 {[%clk 0:00:54]}  Bc8 {[%clk 0:00:16]} 57. Ra3 {[%clk 0:00:54]}  Bd8 {[%clk 0:00:23]} 58. Bg4 {[%clk 0:00:39]}  Be6 {[%clk 0:00:23]} 59. Kg2 {[%clk 0:00:39]}  Bf7 {[%clk 0:00:23]} 60. Bh3 {[%clk 0:00:39]}  Be7 {[%clk 0:00:23]} 61. Qg4 {[%clk 0:00:39]}  Rd8 {[%clk 0:00:23]} 62. Ba5 {[%clk 0:00:29]}  Ra8 {[%clk 0:00:25]} 63. Bc7 {[%clk 0:00:29]}  Qc6 {[%clk 0:00:25]} 64. Qd7 {[%clk 0:00:29]}  Ra6 {[%clk 0:00:25]} 65. Qc8+ {[%clk 0:00:29]} 1-0


[Site "http://www.Chess.com"]

[Event "FIDE World Rapid Chess Championship 2021"]
[White "Aronian, Levon"]
[Black "Kosakowski, Jakub"]
[WhiteFideId "13300474"]
[BlackFideId "1185080"]
[WhiteElo "2728"]
[BlackElo "2304"]
[Result "1-0"]
[Round "06"]
[TimeControl "900+10"]
[Date "2021.12.27"]
[WhiteClock "0:02:04"]
[BlackClock "0:00:16"]

1. e4 {[%clk 0:15:00]}  c5 {[%clk 0:15:09]} 2. Nf3 {[%clk 0:15:26]}  d6 {[%clk 0:15:09]} 3. d4 {[%clk 0:15:26]}  cxd4 {[%clk 0:15:09]} 4. Nxd4 {[%clk 0:15:26]}  Nf6 {[%clk 0:15:09]} 5. Nc3 {[%clk 0:15:26]}  a6 {[%clk 0:15:09]} 6. f3 {[%clk 0:15:26]}  e5 {[%clk 0:15:09]} 7. Nb3 {[%clk 0:15:26]}  Be6 {[%clk 0:15:09]} 8. Be3 {[%clk 0:15:26]}  Be7 {[%clk 0:15:09]} 9. Qd2 {[%clk 0:15:26]}  h5 {[%clk 0:15:10]} 10. Nd5 {[%clk 0:16:19]}  Nxd5 {[%clk 0:15:10]} 11. exd5 {[%clk 0:16:19]}  Bf5 {[%clk 0:15:10]} 12. Be2 {[%clk 0:16:19]}  Nd7 {[%clk 0:14:50]} 13. Na5 {[%clk 0:16:28]}  Qc7 {[%clk 0:13:49]} 14. c4 {[%clk 0:16:24]}  Bh4+ {[%clk 0:13:18]} 15. g3 {[%clk 0:16:07]}  Bf6 {[%clk 0:13:18]} 16. O-O {[%clk 0:16:07]}  O-O {[%clk 0:13:18]} 17. b4 {[%clk 0:16:02]}  e4 {[%clk 0:12:01]} 18. Rac1 {[%clk 0:14:12]}  exf3 {[%clk 0:12:01]} 19. Bxf3 {[%clk 0:14:12]}  Bh3 {[%clk 0:08:36]} 20. Rf2 {[%clk 0:14:27]}  Ne5 {[%clk 0:08:36]} 21. Bxh5 {[%clk 0:14:27]}  b6 {[%clk 0:08:36]} 22. Nc6 {[%clk 0:14:36]}  Rae8 {[%clk 0:06:19]} 23. Bd4 {[%clk 0:14:12]}  Nxc6 {[%clk 0:06:10]} 24. Bxf6 {[%clk 0:12:32]}  gxf6 {[%clk 0:06:10]} 25. dxc6 {[%clk 0:12:38]}  Qxc6 {[%clk 0:03:36]} 26. Rxf6 {[%clk 0:11:09]}  Re5 {[%clk 0:03:44]} 27. Bf3 {[%clk 0:11:09]}  Qc8 {[%clk 0:03:44]} 28. Bd5 {[%clk 0:10:27]}  Qg4 {[%clk 0:03:34]} 29. Qf4 {[%clk 0:07:27]}  Qg7 {[%clk 0:03:34]} 30. Qh4 {[%clk 0:06:56]}  b5 {[%clk 0:02:28]} 31. Rxf7 {[%clk 0:04:06]}  Rxf7 {[%clk 0:01:03]} 32. Bxf7+ {[%clk 0:04:06]}  Qxf7 {[%clk 0:01:03]} 33. Qxh3 {[%clk 0:04:06]}  Qf3 {[%clk 0:01:03]} 34. Qc8+ {[%clk 0:02:16]}  Kg7 {[%clk 0:00:35]} 35. Qc7+ {[%clk 0:02:16]}  Kg8 {[%clk 0:00:35]} 36. Qb8+ {[%clk 0:02:16]}  Kg7 {[%clk 0:00:35]} 37. Qa7+ {[%clk 0:02:16]}  Kh6 {[%clk 0:00:35]} 38. Rf1 {[%clk 0:02:04]}  Qd3 {[%clk 0:00:16]} 39. Rf6+ {[%clk 0:02:04]} 1-0


[Site "http://www.Chess.com"]

[Event "FIDE World Rapid Chess Championship 2021"]
[White "Yuffa, Daniil"]
[Black "Dubov, Daniil"]
[WhiteFideId "24131423"]
[BlackFideId "24126055"]
[WhiteElo "2514"]
[BlackElo "2735"]
[Result "0-1"]
[Round "06"]
[TimeControl "900+10"]
[Date "2021.12.27"]
[WhiteClock "0:01:33"]
[BlackClock "0:05:28"]

1. d4 {[%clk 0:15:00]}  d5 {[%clk 0:15:00]} 2. c4 {[%clk 0:15:00]}  c6 {[%clk 0:15:00]} 3. Nf3 {[%clk 0:15:00]}  Nf6 {[%clk 0:15:00]} 4. Nc3 {[%clk 0:15:00]}  dxc4 {[%clk 0:15:00]} 5. a4 {[%clk 0:15:00]}  Bf5 {[%clk 0:15:00]} 6. Nh4 {[%clk 0:15:00]}  e6 {[%clk 0:15:00]} 7. Nxf5 {[%clk 0:14:44]}  exf5 {[%clk 0:15:57]} 8. e3 {[%clk 0:14:44]}  Bb4 {[%clk 0:15:57]} 9. Bxc4 {[%clk 0:14:44]}  O-O {[%clk 0:15:57]} 10. O-O {[%clk 0:14:44]}  Nbd7 {[%clk 0:16:11]} 11. Qf3 {[%clk 0:14:23]}  g6 {[%clk 0:15:58]} 12. Bd2 {[%clk 0:13:24]}  Nb6 {[%clk 0:15:58]} 13. Bb3 {[%clk 0:13:24]}  a5 {[%clk 0:15:58]} 14. Rad1 {[%clk 0:13:19]}  Re8 {[%clk 0:15:33]} 15. Ne2 {[%clk 0:12:59]}  Ne4 {[%clk 0:15:23]} 16. Bc1 {[%clk 0:11:31]}  Bd6 {[%clk 0:14:56]} 17. g3 {[%clk 0:10:24]}  Nd5 {[%clk 0:13:30]} 18. Qg2 {[%clk 0:09:20]}  Qb6 {[%clk 0:12:46]} 19. Bc2 {[%clk 0:08:32]}  Nef6 {[%clk 0:12:27]} 20. Nc3 {[%clk 0:08:39]}  Re7 {[%clk 0:10:38]} 21. Nb1 {[%clk 0:07:16]}  Rae8 {[%clk 0:09:30]} 22. Nd2 {[%clk 0:06:43]}  Qd8 {[%clk 0:09:30]} 23. Nc4 {[%clk 0:06:43]}  Bc7 {[%clk 0:09:30]} 24. Bb1 {[%clk 0:06:04]}  h5 {[%clk 0:09:26]} 25. Nd2 {[%clk 0:06:04]}  Kg7 {[%clk 0:09:22]} 26. Nf3 {[%clk 0:03:42]}  Ne4 {[%clk 0:09:22]} 27. Rd3 {[%clk 0:03:42]}  Bd6 {[%clk 0:07:20]} 28. Nd2 {[%clk 0:03:26]}  h4 {[%clk 0:07:20]} 29. Rb3 {[%clk 0:02:37]}  hxg3 {[%clk 0:06:57]} 30. hxg3 {[%clk 0:02:37]}  Nxg3 {[%clk 0:06:07]} 31. fxg3 {[%clk 0:02:45]}  Rxe3 {[%clk 0:06:07]} 32. Rxe3 {[%clk 0:02:46]}  Nxe3 {[%clk 0:05:40]} 33. Qf3 {[%clk 0:02:46]}  Nxf1 {[%clk 0:05:40]} 34. Nxf1 {[%clk 0:02:46]}  Re1 {[%clk 0:05:40]} 35. Qc3 {[%clk 0:01:33]}  Bb4 {[%clk 0:05:41]} 36. Qc4 {[%clk 0:01:33]}  Qd5 {[%clk 0:05:41]} 37. Qc2 {[%clk 0:01:33]}  Qf3 {[%clk 0:05:28]} 0-1


[Site "http://www.Chess.com"]

[Event "FIDE World Rapid Chess Championship 2021"]
[White "Sarana, Alexey"]
[Black "Demidov, Mikhail"]
[WhiteFideId "24133795"]
[BlackFideId "4197143"]
[WhiteElo "2680"]
[BlackElo "2544"]
[Result "1-0"]
[Round "06"]
[TimeControl "900+10"]
[Date "2021.12.27"]
[WhiteClock "0:07:19"]
[BlackClock "0:00:02"]

1. d4 {[%clk 0:15:00]}  d5 {[%clk 0:15:00]} 2. c4 {[%clk 0:15:00]}  e6 {[%clk 0:15:00]} 3. Nc3 {[%clk 0:15:00]}  Be7 {[%clk 0:15:25]} 4. cxd5 {[%clk 0:15:36]}  exd5 {[%clk 0:15:25]} 5. Bf4 {[%clk 0:15:36]}  c6 {[%clk 0:15:25]} 6. e3 {[%clk 0:15:36]}  Bf5 {[%clk 0:15:25]} 7. g4 {[%clk 0:15:36]}  Be6 {[%clk 0:14:45]} 8. Bd3 {[%clk 0:16:04]}  h5 {[%clk 0:14:02]} 9. Qb3 {[%clk 0:16:11]}  b6 {[%clk 0:13:12]} 10. gxh5 {[%clk 0:13:53]}  Rxh5 {[%clk 0:11:11]} 11. Nge2 {[%clk 0:13:56]}  g5 {[%clk 0:08:51]} 12. Bg3 {[%clk 0:14:05]}  Nf6 {[%clk 0:08:51]} 13. O-O-O {[%clk 0:14:05]}  a5 {[%clk 0:07:06]} 14. h4 {[%clk 0:14:04]}  Nbd7 {[%clk 0:04:39]} 15. hxg5 {[%clk 0:14:04]}  Rxg5 {[%clk 0:04:39]} 16. Nf4 {[%clk 0:14:04]}  Bg4 {[%clk 0:03:27]} 17. Rh8+ {[%clk 0:13:43]}  Nf8 {[%clk 0:02:24]} 18. Rdh1 {[%clk 0:13:41]}  Bf3 {[%clk 0:02:24]} 19. R1h6 {[%clk 0:13:41]}  a4 {[%clk 0:01:31]} 20. Qc2 {[%clk 0:13:37]}  a3 {[%clk 0:00:11]} 21. b3 {[%clk 0:13:37]}  Qd7 {[%clk 0:00:37]} 22. Nh3 {[%clk 0:12:13]}  Rg8 {[%clk 0:00:00]} 23. Bf5 {[%clk 0:12:13]}  Qb7 {[%clk 0:00:19]} 24. Rxg8 {[%clk 0:10:18]}  Nxg8 {[%clk 0:00:19]} 25. Rh8 {[%clk 0:10:18]}  Nf6 {[%clk 0:00:19]} 26. Ng5 {[%clk 0:10:18]}  Bg2 {[%clk 0:00:19]} 27. Ne2 {[%clk 0:10:20]}  Nd7 {[%clk 0:00:00]} 28. Rg8 {[%clk 0:09:21]}  Bxg5 {[%clk 0:00:01]} 29. Rxg5 {[%clk 0:09:21]}  O-O-O {[%clk 0:00:01]} 30. Bd6 {[%clk 0:08:22]}  Bf3 {[%clk 0:00:00]} 31. Rg7 {[%clk 0:08:22]}  Bxe2 {[%clk 0:00:02]} 32. Qxe2 {[%clk 0:07:19]}  Ne6 {[%clk 0:00:02]} 33. Rxf7 {[%clk 0:07:19]}  Ng5 {[%clk 0:00:02]} 34. Rxd7 {[%clk 0:07:19]}  Rxd7 {[%clk 0:00:02]} 35. Qh5 {[%clk 0:07:19]} 1-0


[Site "http://www.Chess.com"]

[Event "FIDE World Rapid Chess Championship 2021"]
[White "Svane, Rasmus"]
[Black "Fridman, Daniel"]
[WhiteFideId "4657101"]
[BlackFideId "11600454"]
[WhiteElo "2677"]
[BlackElo "2542"]
[Result "1/2-1/2"]
[Round "06"]
[TimeControl "900+10"]
[Date "2021.12.27"]
[WhiteClock "0:00:49"]
[BlackClock "0:00:41"]

1. e4 {[%clk 0:15:00]}  e6 {[%clk 0:15:00]} 2. d4 {[%clk 0:15:18]}  d5 {[%clk 0:15:00]} 3. Nd2 {[%clk 0:15:18]}  dxe4 {[%clk 0:15:00]} 4. Nxe4 {[%clk 0:15:18]}  Bd7 {[%clk 0:15:00]} 5. Nf3 {[%clk 0:15:16]}  Bc6 {[%clk 0:14:45]} 6. Bd3 {[%clk 0:15:16]}  Nd7 {[%clk 0:14:45]} 7. O-O {[%clk 0:15:16]}  Ngf6 {[%clk 0:14:45]} 8. Ng3 {[%clk 0:15:16]}  g6 {[%clk 0:14:45]} 9. Re1 {[%clk 0:15:16]}  Bg7 {[%clk 0:14:45]} 10. h4 {[%clk 0:15:16]}  O-O {[%clk 0:15:25]} 11. h5 {[%clk 0:15:16]}  Bxf3 {[%clk 0:13:54]} 12. Qxf3 {[%clk 0:15:18]}  c5 {[%clk 0:13:54]} 13. dxc5 {[%clk 0:15:27]}  Nxc5 {[%clk 0:13:36]} 14. Be2 {[%clk 0:13:30]}  Rc8 {[%clk 0:13:41]} 15. c3 {[%clk 0:13:16]}  Qd5 {[%clk 0:11:49]} 16. Rd1 {[%clk 0:12:18]}  Qxf3 {[%clk 0:09:39]} 17. Bxf3 {[%clk 0:12:18]}  Rfd8 {[%clk 0:09:39]} 18. Be3 {[%clk 0:12:18]}  b6 {[%clk 0:09:28]} 19. hxg6 {[%clk 0:11:35]}  hxg6 {[%clk 0:09:14]} 20. Rab1 {[%clk 0:09:11]}  Kf8 {[%clk 0:09:14]} 21. Kf1 {[%clk 0:08:25]}  Ke7 {[%clk 0:07:32]} 22. Bg5 {[%clk 0:08:32]}  Rxd1+ {[%clk 0:06:35]} 23. Rxd1 {[%clk 0:08:23]}  Rd8 {[%clk 0:06:35]} 24. Rxd8 {[%clk 0:08:24]}  Kxd8 {[%clk 0:03:56]} 25. Ne4 {[%clk 0:08:02]}  Nxe4 {[%clk 0:04:05]} 26. Bxe4 {[%clk 0:08:02]}  Kd7 {[%clk 0:04:05]} 27. Bd3 {[%clk 0:08:02]}  Ng4 {[%clk 0:02:04]} 28. Bb5+ {[%clk 0:06:57]}  Kd6 {[%clk 0:02:04]} 29. Be8 {[%clk 0:06:57]}  Ne5 {[%clk 0:01:33]} 30. Ke2 {[%clk 0:06:59]}  f6 {[%clk 0:01:33]} 31. Be3 {[%clk 0:06:59]}  g5 {[%clk 0:01:33]} 32. Bb5 {[%clk 0:06:30]}  Bf8 {[%clk 0:00:59]} 33. Ba4 {[%clk 0:06:30]}  Be7 {[%clk 0:00:22]} 34. b4 {[%clk 0:06:09]}  Nc4 {[%clk 0:00:20]} 35. Bc1 {[%clk 0:05:08]}  a6 {[%clk 0:00:20]} 36. Bb3 {[%clk 0:05:08]}  Kd5 {[%clk 0:00:20]} 37. a4 {[%clk 0:05:12]}  b5 {[%clk 0:00:32]} 38. a5 {[%clk 0:05:12]}  f5 {[%clk 0:00:32]} 39. Kd3 {[%clk 0:05:12]}  e5 {[%clk 0:00:32]} 40. f3 {[%clk 0:04:47]}  e4+ {[%clk 0:00:49]} 41. fxe4+ {[%clk 0:04:47]}  fxe4+ {[%clk 0:00:49]} 42. Kc2 {[%clk 0:04:47]}  Kc6 {[%clk 0:00:49]} 43. g4 {[%clk 0:03:32]}  Bf6 {[%clk 0:00:38]} 44. Ba2 {[%clk 0:01:59]}  Kd6 {[%clk 0:00:38]} 45. Bxc4 {[%clk 0:01:11]}  bxc4 {[%clk 0:00:32]} 46. Be3 {[%clk 0:01:11]}  Kd5 {[%clk 0:00:32]} 47. Kd2 {[%clk 0:01:11]}  Be7 {[%clk 0:00:41]} 48. Kc2 {[%clk 0:00:49]}  Bf6 {[%clk 0:00:41]} 1/2-1/2


[Site "http://www.Chess.com"]

[Event "FIDE World Rapid Chess Championship 2021"]
[White "Shevchenko, Kirill"]
[Black "Demchenko, Anton"]
[WhiteFideId "14129574"]
[BlackFideId "4160258"]
[WhiteElo "2508"]
[BlackElo "2666"]
[Result "1-0"]
[Round "06"]
[TimeControl "900+10"]
[Date "2021.12.27"]
[WhiteClock "0:00:28"]
[BlackClock "0:01:21"]

1. e4 {[%clk 0:15:00]}  e5 {[%clk 0:15:00]} 2. Nf3 {[%clk 0:15:00]}  Nc6 {[%clk 0:15:00]} 3. Bb5 {[%clk 0:15:00]}  a6 {[%clk 0:15:00]} 4. Ba4 {[%clk 0:15:42]}  Nf6 {[%clk 0:15:43]} 5. Nc3 {[%clk 0:15:42]}  Be7 {[%clk 0:15:43]} 6. Bxc6 {[%clk 0:15:34]}  dxc6 {[%clk 0:15:34]} 7. d3 {[%clk 0:15:34]}  Nd7 {[%clk 0:15:34]} 8. O-O {[%clk 0:15:34]}  O-O {[%clk 0:15:34]} 9. Be3 {[%clk 0:15:34]}  Re8 {[%clk 0:15:35]} 10. a4 {[%clk 0:14:50]}  a5 {[%clk 0:14:33]} 11. Qe2 {[%clk 0:12:49]}  Bd6 {[%clk 0:14:33]} 12. Rad1 {[%clk 0:11:08]}  Qe7 {[%clk 0:13:30]} 13. Nd2 {[%clk 0:08:59]}  Nf8 {[%clk 0:12:48]} 14. Nc4 {[%clk 0:06:29]}  Bc5 {[%clk 0:12:07]} 15. f4 {[%clk 0:05:39]}  exf4 {[%clk 0:10:22]} 16. Rxf4 {[%clk 0:05:39]}  Ng6 {[%clk 0:10:22]} 17. Rf2 {[%clk 0:04:11]}  Be6 {[%clk 0:10:23]} 18. Bxc5 {[%clk 0:04:11]}  Qxc5 {[%clk 0:10:07]} 19. Ne3 {[%clk 0:04:11]}  Qb4 {[%clk 0:10:15]} 20. Rb1 {[%clk 0:02:11]}  Rad8 {[%clk 0:10:15]} 21. Qe1 {[%clk 0:02:11]}  Qd4 {[%clk 0:09:34]} 22. b3 {[%clk 0:02:10]}  b6 {[%clk 0:07:48]} 23. Kh1 {[%clk 0:02:01]}  Ne5 {[%clk 0:06:07]} 24. h3 {[%clk 0:01:59]}  f6 {[%clk 0:04:46]} 25. Rf1 {[%clk 0:02:02]}  Qb4 {[%clk 0:04:46]} 26. Nc4 {[%clk 0:01:45]}  Ng6 {[%clk 0:04:21]} 27. Ne3 {[%clk 0:01:45]}  Ne5 {[%clk 0:03:55]} 28. Ne2 {[%clk 0:00:46]}  Qxe1 {[%clk 0:03:55]} 29. Rbxe1 {[%clk 0:00:46]}  Bf7 {[%clk 0:03:55]} 30. Nf4 {[%clk 0:00:48]}  h6 {[%clk 0:03:16]} 31. Kh2 {[%clk 0:00:25]}  Nd7 {[%clk 0:03:16]} 32. Nf5 {[%clk 0:00:25]}  Nc5 {[%clk 0:03:16]} 33. Re3 {[%clk 0:00:25]}  Be6 {[%clk 0:03:16]} 34. g4 {[%clk 0:00:25]}  b5 {[%clk 0:02:10]} 35. Nh5 {[%clk 0:00:25]}  Bxf5 {[%clk 0:02:10]} 36. gxf5 {[%clk 0:00:25]}  Re7 {[%clk 0:01:37]} 37. Rg3 {[%clk 0:00:22]}  Kh7 {[%clk 0:01:37]} 38. Rfg1 {[%clk 0:00:22]}  Rdd7 {[%clk 0:01:37]} 39. Rg6 {[%clk 0:00:22]}  bxa4 {[%clk 0:01:37]} 40. bxa4 {[%clk 0:00:22]}  Nxa4 {[%clk 0:01:21]} 41. Rxf6 {[%clk 0:00:28]}  Nc3 {[%clk 0:01:21]} 42. Rf8 {[%clk 0:00:28]}  Rf7 {[%clk 0:01:21]} 43. Rxg7+ {[%clk 0:00:28]}  Rxg7 {[%clk 0:01:21]} 44. Nf6# {[%clk 0:00:28]} 1-0


[Site "http://www.Chess.com"]

[Event "FIDE World Rapid Chess Championship 2021"]
[White "Alekseenko, Kirill"]
[Black "Petrosyan, Manuel"]
[WhiteFideId "4135539"]
[BlackFideId "13300857"]
[WhiteElo "2637"]
[BlackElo "2514"]
[Result "1-0"]
[Round "06"]
[TimeControl "900+10"]
[Date "2021.12.27"]
[WhiteClock "0:02:27"]
[BlackClock "0:00:22"]

1. d4 {[%clk 0:15:00]}  Nf6 {[%clk 0:15:00]} 2. Nf3 {[%clk 0:15:00]}  d5 {[%clk 0:15:00]} 3. Bf4 {[%clk 0:15:36]}  g6 {[%clk 0:13:55]} 4. Nbd2 {[%clk 0:15:36]}  Bg7 {[%clk 0:13:53]} 5. Nb3 {[%clk 0:15:36]}  O-O {[%clk 0:13:53]} 6. h3 {[%clk 0:15:36]}  Ne4 {[%clk 0:13:52]} 7. e3 {[%clk 0:15:36]}  c5 {[%clk 0:13:52]} 8. c3 {[%clk 0:15:36]}  cxd4 {[%clk 0:12:38]} 9. exd4 {[%clk 0:15:41]}  Nc6 {[%clk 0:10:03]} 10. Bd3 {[%clk 0:15:40]}  Bf5 {[%clk 0:10:03]} 11. O-O {[%clk 0:15:40]}  Nd6 {[%clk 0:09:06]} 12. Nc5 {[%clk 0:15:29]}  b6 {[%clk 0:08:22]} 13. Bxf5 {[%clk 0:15:29]}  bxc5 {[%clk 0:08:03]} 14. Bc2 {[%clk 0:14:24]}  cxd4 {[%clk 0:08:03]} 15. cxd4 {[%clk 0:14:24]}  Nb5 {[%clk 0:08:08]} 16. Be3 {[%clk 0:13:47]}  Qb6 {[%clk 0:07:29]} 17. Ba4 {[%clk 0:11:54]}  a6 {[%clk 0:07:29]} 18. Bxb5 {[%clk 0:12:03]}  axb5 {[%clk 0:05:54]} 19. Qd2 {[%clk 0:12:03]}  b4 {[%clk 0:05:33]} 20. Rfc1 {[%clk 0:09:29]}  Rfc8 {[%clk 0:04:32]} 21. b3 {[%clk 0:09:29]}  e6 {[%clk 0:04:15]} 22. Rc2 {[%clk 0:08:13]}  Ne7 {[%clk 0:03:39]} 23. Rac1 {[%clk 0:08:13]}  Rxc2 {[%clk 0:03:39]} 24. Rxc2 {[%clk 0:08:13]}  Nf5 {[%clk 0:03:39]} 25. g4 {[%clk 0:08:13]}  Nxe3 {[%clk 0:02:16]} 26. Qxe3 {[%clk 0:07:47]}  Qb7 {[%clk 0:02:16]} 27. Qc1 {[%clk 0:07:47]}  Qa6 {[%clk 0:01:02]} 28. Qd2 {[%clk 0:07:56]}  h6 {[%clk 0:01:02]} 29. Kg2 {[%clk 0:07:56]}  Qb5 {[%clk 0:00:42]} 30. h4 {[%clk 0:07:28]}  Qb8 {[%clk 0:00:42]} 31. Qc1 {[%clk 0:06:51]}  Qa7 {[%clk 0:00:22]} 32. Qf4 {[%clk 0:06:51]}  Rf8 {[%clk 0:00:16]} 33. Ne5 {[%clk 0:06:01]}  Qe7 {[%clk 0:00:16]} 34. Nf3 {[%clk 0:06:01]}  Qf6 {[%clk 0:00:14]} 35. Qg3 {[%clk 0:05:11]}  h5 {[%clk 0:00:14]} 36. gxh5 {[%clk 0:05:11]}  Qf5 {[%clk 0:00:14]} 37. Rc7 {[%clk 0:05:11]}  Qxh5 {[%clk 0:00:14]} 38. Rb7 {[%clk 0:05:11]}  Ra8 {[%clk 0:00:34]} 39. Ng5 {[%clk 0:03:00]}  Rf8 {[%clk 0:00:34]} 40. Qf4 {[%clk 0:02:27]}  Qe2 {[%clk 0:00:22]} 41. Rxf7 {[%clk 0:02:27]} 1-0


[Site "http://www.Chess.com"]